[Event "*** Titled Tuesday Blitz"]
[Site "Chess.com"]
[Date "2019.04.02"]
[Round "4"]
[White "StoreySniper"]
[Black "PotapovaM"]
[Result "0-1"]
[WhiteElo "2478"]
[BlackElo "2440"]
[TimeControl "180+2"]
[EndTime "14:50:07 PDT"]
[Termination "PotapovaM won by resignation"]

1. d4 {[%clk 0:03:01.9]} 1... Nf6 {[%clk 0:02:59.8]} 2. Bg5 {[%clk 0:03:01.2]}
2... e6 {[%clk 0:02:58.4]} 3. Nc3 {[%clk 0:02:59.7]} 3... h6 {[%clk 0:02:55.6]}
4. Bf4 {[%clk 0:02:59.5]} 4... g5 {[%clk 0:02:53.7]} 5. Bg3 {[%clk 0:02:55.6]}
5... Bg7 {[%clk 0:02:54.7]} 6. e4 {[%clk 0:02:55.5]} 6... d6 {[%clk 0:02:55.5]}
7. h4 {[%clk 0:02:53.8]} 7... g4 {[%clk 0:02:42]} 8. Qd3 {[%clk 0:02:40]} 8...
Nc6 {[%clk 0:02:35.3]} 9. O-O-O {[%clk 0:02:38]} 9... h5 {[%clk 0:02:27.6]} 10.
Kb1 {[%clk 0:02:37.5]} 10... Bd7 {[%clk 0:02:28.3]} 11. f4 {[%clk 0:02:30.3]}
11... Qe7 {[%clk 0:02:25.4]} 12. e5 {[%clk 0:02:23.6]} 12... dxe5 {[%clk
0:02:23]} 13. dxe5 {[%clk 0:02:24.2]} 13... Ng8 {[%clk 0:02:23.6]} 14. Bf2
{[%clk 0:01:54.2]} 14... O-O-O {[%clk 0:01:35.8]} 15. g3 {[%clk 0:01:42.8]}
15... Nh6 {[%clk 0:01:30.7]} 16. Bg2 {[%clk 0:01:42.9]} 16... Nf5 {[%clk
0:01:30.8]} 17. Nge2 {[%clk 0:01:42]} 17... Nb4 {[%clk 0:01:25.8]} 18. Qc4
{[%clk 0:01:33.9]} 18... Bc6 {[%clk 0:01:26.7]} 19. Bc5 {[%clk 0:01:30.5]} 19...
Rxd1+ {[%clk 0:01:18.7]} 20. Rxd1 {[%clk 0:01:25.7]} 20... Qe8 {[%clk
0:01:20.1]} 21. Bf1 {[%clk 0:00:55.6]} 21... Nd5 {[%clk 0:01:15.7]} 22. Bxa7
{[%clk 0:00:50.8]} 22... Nde3 {[%clk 0:01:07]} 23. Bxe3 {[%clk 0:00:51]} 23...
Nxe3 {[%clk 0:01:08.9]} 24. Qd4 {[%clk 0:00:33.2]} 24... Nxd1 {[%clk 0:01:09.3]}
25. Qxd1 {[%clk 0:00:34.2]} 25... Bf3 {[%clk 0:01:06.2]} 26. Qd4 {[%clk
0:00:30.7]} 26... Qc6 {[%clk 0:01:04.5]} 27. Qa7 {[%clk 0:00:27.7]} 27... Qa6
{[%clk 0:01:01.2]} 28. Qxa6 {[%clk 0:00:27.5]} 28... bxa6 {[%clk 0:01:03.1]} 29.
Nd4 {[%clk 0:00:28.7]} 29... Kb7 {[%clk 0:00:53.8]} 30. Nxf3 {[%clk 0:00:19.8]}
30... gxf3 {[%clk 0:00:55.7]} 31. Kc1 {[%clk 0:00:21.2]} 31... f6 {[%clk
0:00:53.6]} 32. exf6 {[%clk 0:00:21.1]} 32... Bxf6 {[%clk 0:00:55.2]} 33. Ne4
{[%clk 0:00:22.8]} 33... Be7 {[%clk 0:00:53]} 34. Bd3 {[%clk 0:00:22.7]} 34...
Kc6 {[%clk 0:00:46.5]} 35. Kd2 {[%clk 0:00:23.9]} 35... Bc5 {[%clk 0:00:47.5]}
36. Ng5 {[%clk 0:00:21.8]} 36... f2 {[%clk 0:00:45.9]} 37. Nxe6 {[%clk
0:00:22.2]} 37... Rg8 {[%clk 0:00:42.2]} 38. Ng5 {[%clk 0:00:22.4]} 38... Re8
{[%clk 0:00:41.6]} 39. Be2 {[%clk 0:00:22.2]} 39... Rd8+ {[%clk 0:00:35.3]} 40.
Kc3 {[%clk 0:00:20.1]} 40... Re8 {[%clk 0:00:35.2]} 41. Kd3 {[%clk 0:00:18.9]}
41... Re3+ {[%clk 0:00:34.6]} 42. Kd2 {[%clk 0:00:20.1]} 42... Rxg3 {[%clk
0:00:33.8]} 43. c3 {[%clk 0:00:19.7]} 43... Rg1 {[%clk 0:00:31.7]} 44. b4 {[%clk
0:00:16.8]} 44... Bd6 {[%clk 0:00:29.5]} 45. Bf3+ {[%clk 0:00:16]} 45... Kd7
{[%clk 0:00:27.9]} 0-1

[Event "*** Titled Tuesday Blitz"]
[Site "Chess.com"]
[Date "2019.04.02"]
[Round "4"]
[White "Nancy11111"]
[Black "Beawuids"]
[Result "0-1"]
[WhiteElo "2287"]
[BlackElo "2361"]
[TimeControl "180+2"]
[EndTime "14:50:09 PDT"]
[Termination "Beawuids won by checkmate"]

1. d4 {[%clk 0:03:01.9]} 1... d5 {[%clk 0:03:00.2]} 2. Nf3 {[%clk 0:03:02.1]}
2... Nf6 {[%clk 0:03:00.5]} 3. e3 {[%clk 0:03:02]} 3... Bf5 {[%clk 0:02:59.6]}
4. c4 {[%clk 0:03:01.8]} 4... c6 {[%clk 0:03:00.3]} 5. cxd5 {[%clk 0:03:00.8]}
5... cxd5 {[%clk 0:03:00.3]} 6. Nc3 {[%clk 0:03:02.3]} 6... Nc6 {[%clk 0:02:59]}
7. Ne5 {[%clk 0:03:01.6]} 7... e6 {[%clk 0:02:56.3]} 8. g4 {[%clk 0:03:01.4]}
8... Be4 {[%clk 0:02:27.6]} 9. f3 {[%clk 0:02:59.4]} 9... Bg6 {[%clk 0:02:27.3]}
10. h4 {[%clk 0:02:58.2]} 10... h6 {[%clk 0:02:10.9]} 11. Nxg6 {[%clk
0:02:57.4]} 11... fxg6 {[%clk 0:02:12.8]} 12. Bd3 {[%clk 0:02:57.9]} 12... Kf7
{[%clk 0:02:09.2]} 13. a3 {[%clk 0:02:12.4]} 13... Bd6 {[%clk 0:02:06.7]} 14.
Qc2 {[%clk 0:02:09.7]} 14... Ne7 {[%clk 0:02:06]} 15. Bd2 {[%clk 0:02:03.7]}
15... Bg3+ {[%clk 0:02:06]} 16. Ke2 {[%clk 0:02:03.4]} 16... Bd6 {[%clk
0:02:03]} 17. Rag1 {[%clk 0:01:55]} 17... Rc8 {[%clk 0:02:02.8]} 18. Qb1 {[%clk
0:01:54.7]} 18... Rg8 {[%clk 0:01:33.5]} 19. g5 {[%clk 0:01:48.8]} 19... Nh5
{[%clk 0:01:34.2]} 20. Be1 {[%clk 0:01:44.1]} 20... Nf5 {[%clk 0:01:31.2]} 21.
Rh3 {[%clk 0:01:32.3]} 21... a6 {[%clk 0:01:21.8]} 22. Bf2 {[%clk 0:01:32.5]}
22... b5 {[%clk 0:01:21.9]} 23. e4 {[%clk 0:01:32.6]} 23... Ne7 {[%clk
0:01:21.4]} 24. e5 {[%clk 0:01:31.8]} 24... Nf4+ {[%clk 0:01:22]} 25. Kf1 {[%clk
0:01:24]} 25... Nxh3 {[%clk 0:01:19.6]} 26. exd6 {[%clk 0:01:22.5]} 26... Qxd6
{[%clk 0:01:18.4]} 27. Rg2 {[%clk 0:01:17.2]} 27... Nxf2 {[%clk 0:01:17.5]} 28.
Kxf2 {[%clk 0:01:17.4]} 28... Qf4 {[%clk 0:01:17.9]} 29. gxh6 {[%clk 0:01:15.2]}
29... gxh6 {[%clk 0:01:17.9]} 30. Ne2 {[%clk 0:01:14.4]} 30... Qxh4+ {[%clk
0:01:17.9]} 31. Kg1 {[%clk 0:01:12.3]} 31... Nf5 {[%clk 0:01:19]} 32. Rg4 {[%clk
0:00:54.1]} 32... Qh3 {[%clk 0:01:08.6]} 33. Kf2 {[%clk 0:00:52.9]} 33... h5
{[%clk 0:01:03.2]} 34. Rg1 {[%clk 0:00:42.6]} 34... Qh4+ {[%clk 0:01:03.5]} 35.
Ng3 {[%clk 0:00:33.8]} 35... Qxd4+ {[%clk 0:01:03.6]} 36. Kg2 {[%clk 0:00:32.1]}
36... Ne3+ {[%clk 0:01:02.8]} 37. Kh3 {[%clk 0:00:33]} 37... g5 {[%clk
0:00:59.1]} 38. f4 {[%clk 0:00:20.8]} 38... g4+ {[%clk 0:00:52.2]} 39. Kh2
{[%clk 0:00:20.5]} 39... h4 {[%clk 0:00:52.3]} 40. Nh5 {[%clk 0:00:19]} 40...
g3+ {[%clk 0:00:51.4]} 41. Kh3 {[%clk 0:00:20.2]} 41... Qh8 {[%clk 0:00:43.9]}
42. Be2 {[%clk 0:00:19.5]} 42... Rc2 {[%clk 0:00:31.3]} 43. Bf3 {[%clk
0:00:19.2]} 43... Rh2# {[%clk 0:00:30.7]} 0-1

[Event "*** Titled Tuesday Blitz"]
[Site "Chess.com"]
[Date "2019.04.02"]
[Round "4"]
[White "Didici"]
[Black "platy3"]
[Result "0-1"]
[WhiteElo "2609"]
[BlackElo "2778"]
[TimeControl "180+2"]
[EndTime "14:50:21 PDT"]
[Termination "platy3 won by resignation"]

1. d4 {[%clk 0:03:01.9]} 1... Nf6 {[%clk 0:02:56.6]} 2. c4 {[%clk 0:03:01.7]}
2... e6 {[%clk 0:02:57.8]} 3. Nc3 {[%clk 0:02:59.9]} 3... Bb4 {[%clk 0:02:57.6]}
4. e3 {[%clk 0:03:00.8]} 4... O-O {[%clk 0:02:57.9]} 5. Bd3 {[%clk 0:03:02.3]}
5... c5 {[%clk 0:02:58]} 6. a3 {[%clk 0:02:56.5]} 6... Bxc3+ {[%clk 0:02:58.8]}
7. bxc3 {[%clk 0:02:58.4]} 7... d6 {[%clk 0:03:00.2]} 8. e4 {[%clk 0:02:57.9]}
8... Nc6 {[%clk 0:03:00.3]} 9. Ne2 {[%clk 0:02:57.6]} 9... b6 {[%clk 0:03:01.4]}
10. Bg5 {[%clk 0:02:55.7]} 10... h6 {[%clk 0:03:01.7]} 11. Bh4 {[%clk
0:02:56.4]} 11... e5 {[%clk 0:03:02.2]} 12. O-O {[%clk 0:02:50.4]} 12... Ba6
{[%clk 0:03:02.3]} 13. f4 {[%clk 0:02:51]} 13... cxd4 {[%clk 0:02:49.6]} 14.
cxd4 {[%clk 0:02:21.5]} 14... exd4 {[%clk 0:02:50.9]} 15. Ng3 {[%clk 0:02:20.6]}
15... Re8 {[%clk 0:02:49.4]} 16. Nh5 {[%clk 0:02:18.7]} 16... Re6 {[%clk
0:02:33.8]} 17. Bxf6 {[%clk 0:01:31.2]} 17... gxf6 {[%clk 0:02:33.4]} 18. Qg4+
{[%clk 0:01:30.3]} 18... Kf8 {[%clk 0:02:34.9]} 19. f5 {[%clk 0:01:26.1]} 19...
Re5 {[%clk 0:02:35.7]} 20. Qg7+ {[%clk 0:01:25.9]} 20... Ke7 {[%clk 0:02:37.1]}
21. Qxf6+ {[%clk 0:01:26.4]} 21... Ke8 {[%clk 0:02:37.8]} 22. Qxh6 {[%clk
0:01:22.9]} 22... Kd7 {[%clk 0:02:35]} 23. Nf6+ {[%clk 0:01:21.4]} 23... Kc7
{[%clk 0:02:36.3]} 24. Nd5+ {[%clk 0:01:22.4]} 24... Kb7 {[%clk 0:02:37.6]} 25.
Rf3 {[%clk 0:01:19.1]} 25... Re8 {[%clk 0:02:23.3]} 26. Rg3 {[%clk 0:01:17.3]}
26... Ne5 {[%clk 0:02:24.2]} 27. Bf1 {[%clk 0:01:16]} 27... Bxc4 {[%clk
0:02:20.3]} 28. Bxc4 {[%clk 0:01:12.7]} 28... Nxc4 {[%clk 0:02:22.2]} 29. Rg7
{[%clk 0:01:13.2]} 29... Ne5 {[%clk 0:02:21.1]} 30. Rd1 {[%clk 0:01:10.6]} 30...
d3 {[%clk 0:02:21.9]} 31. Rxd3 {[%clk 0:01:07.1]} 31... Nxd3 {[%clk 0:02:03.8]}
32. Rxf7+ {[%clk 0:01:07.9]} 32... Kc6 {[%clk 0:02:03.5]} 33. Qe3 {[%clk
0:00:36.3]} 33... Nc5 {[%clk 0:01:51.2]} 34. Nb4+ {[%clk 0:00:36.5]} 34... Kb5
{[%clk 0:01:52.7]} 35. Qe2+ {[%clk 0:00:37.4]} 35... Ka4 {[%clk 0:01:54.1]} 36.
Qc2+ {[%clk 0:00:35.3]} 36... Kb5 {[%clk 0:01:43.8]} 37. Qe2+ {[%clk 0:00:35.2]}
37... Ka4 {[%clk 0:01:42.8]} 38. Qd1+ {[%clk 0:00:36.2]} 38... Kxa3 {[%clk
0:01:30]} 39. Nc6 {[%clk 0:00:37.2]} 39... Qg5 {[%clk 0:01:24.1]} 40. Qa1+
{[%clk 0:00:32.6]} 40... Kb3 {[%clk 0:01:25.6]} 41. Qb1+ {[%clk 0:00:31.6]}
41... Kc3 {[%clk 0:01:25.8]} 42. Qa1+ {[%clk 0:00:32.3]} 42... Kd3 {[%clk
0:01:11.6]} 43. Qd1+ {[%clk 0:00:32.8]} 43... Kc4 {[%clk 0:00:59.2]} 44. Qd5+
{[%clk 0:00:21.5]} 44... Kb5 {[%clk 0:00:47.2]} 45. Nd4+ {[%clk 0:00:21.5]}
45... Kb4 {[%clk 0:00:48.6]} 46. Nc6+ {[%clk 0:00:22.1]} 46... Ka3 {[%clk
0:00:43.4]} 47. Nxa7 {[%clk 0:00:17.9]} 47... Qc1+ {[%clk 0:00:39.8]} 48. Kf2
{[%clk 0:00:18.5]} 48... Nxe4+ {[%clk 0:00:38.1]} 49. Kf3 {[%clk 0:00:19.9]}
49... Qf1+ {[%clk 0:00:31.7]} 50. Kg4 {[%clk 0:00:19.3]} 50... Qxg2+ {[%clk
0:00:32.3]} 0-1

[Event "*** Titled Tuesday Blitz"]
[Site "Chess.com"]
[Date "2019.04.02"]
[Round "4"]
[White "ALeks_Ivlev"]
[Black "KarstenHansch"]
[Result "1-0"]
[WhiteElo "2486"]
[BlackElo "2272"]
[TimeControl "180+2"]
[EndTime "14:50:22 PDT"]
[Termination "ALeks_Ivlev won by checkmate"]

1. d4 {[%clk 0:02:59.8]} 1... Nf6 {[%clk 0:03:00.1]} 2. c4 {[%clk 0:03:01.7]}
2... g6 {[%clk 0:03:01.1]} 3. Nf3 {[%clk 0:03:02.8]} 3... Bg7 {[%clk 0:03:02.7]}
4. Nc3 {[%clk 0:03:02.6]} 4... O-O {[%clk 0:03:04.3]} 5. e4 {[%clk 0:03:03.9]}
5... d6 {[%clk 0:03:05.6]} 6. Be2 {[%clk 0:03:05.3]} 6... e5 {[%clk 0:03:06.6]}
7. d5 {[%clk 0:03:06.7]} 7... a5 {[%clk 0:03:03.2]} 8. Bg5 {[%clk 0:03:07.6]}
8... h6 {[%clk 0:02:58]} 9. Bh4 {[%clk 0:03:08.4]} 9... Na6 {[%clk 0:02:57.8]}
10. Nd2 {[%clk 0:03:08.6]} 10... Qe8 {[%clk 0:02:54.5]} 11. O-O {[%clk
0:03:08.7]} 11... Nh7 {[%clk 0:02:50.6]} 12. b3 {[%clk 0:03:01]} 12... Bf6
{[%clk 0:02:47.7]} 13. Bg3 {[%clk 0:02:59]} 13... Bg5 {[%clk 0:02:48.3]} 14. a3
{[%clk 0:02:58.1]} 14... f5 {[%clk 0:02:45.9]} 15. f3 {[%clk 0:02:57.2]} 15...
Be3+ {[%clk 0:02:44.3]} 16. Kh1 {[%clk 0:02:56.5]} 16... f4 {[%clk 0:02:37.6]}
17. Be1 {[%clk 0:02:55.8]} 17... g5 {[%clk 0:02:28.9]} 18. b4 {[%clk 0:02:55.2]}
18... Bd4 {[%clk 0:02:22]} 19. Nb3 {[%clk 0:02:44.8]} 19... Bxc3 {[%clk
0:01:54]} 20. Bxc3 {[%clk 0:02:43.4]} 20... axb4 {[%clk 0:01:32]} 21. axb4
{[%clk 0:02:41.5]} 21... Rb8 {[%clk 0:01:15.8]} 22. c5 {[%clk 0:02:37.8]} 22...
g4 {[%clk 0:01:06.1]} 23. fxg4 {[%clk 0:02:37]} 23... Nf6 {[%clk 0:01:06.7]} 24.
h3 {[%clk 0:02:32.3]} 24... Nxe4 {[%clk 0:01:04.5]} 25. Be1 {[%clk 0:02:31.7]}
25... dxc5 {[%clk 0:00:53.7]} 26. b5 {[%clk 0:02:27.1]} 26... Nb4 {[%clk
0:00:47.5]} 27. Nxc5 {[%clk 0:02:24.9]} 27... Nxc5 {[%clk 0:00:47.9]} 28. Bxb4
{[%clk 0:02:25.3]} 28... Ne4 {[%clk 0:00:48.1]} 29. Be1 {[%clk 0:02:17.6]} 29...
Rf6 {[%clk 0:00:47.1]} 30. Qc2 {[%clk 0:02:12.3]} 30... Nd6 {[%clk 0:00:46.4]}
31. Qxc7 {[%clk 0:02:10]} 31... Bd7 {[%clk 0:00:45.5]} 32. Qc2 {[%clk
0:01:38.2]} 32... Rc8 {[%clk 0:00:44.6]} 33. Qb2 {[%clk 0:01:38.6]} 33... Bxb5
{[%clk 0:00:42.7]} 34. Bxb5 {[%clk 0:01:20.3]} 34... Qxb5 {[%clk 0:00:44.6]} 35.
Bc3 {[%clk 0:01:20.9]} 35... Qxb2 {[%clk 0:00:43.3]} 36. Bxb2 {[%clk 0:01:20.6]}
36... Nc4 {[%clk 0:00:42.9]} 37. Bc3 {[%clk 0:01:12.8]} 37... Rd6 {[%clk
0:00:38.9]} 38. Rfb1 {[%clk 0:01:03.2]} 38... b6 {[%clk 0:00:36.5]} 39. Rb5
{[%clk 0:01:01.9]} 39... Rc5 {[%clk 0:00:32.7]} 40. Rxc5 {[%clk 0:00:39.4]}
40... bxc5 {[%clk 0:00:34.6]} 41. Ra4 {[%clk 0:00:40]} 41... Nb6 {[%clk
0:00:32.2]} 42. Ra6 {[%clk 0:00:40.5]} 42... Kf7 {[%clk 0:00:25.3]} 43. Bxe5
{[%clk 0:00:40.4]} 43... Rxd5 {[%clk 0:00:23.6]} 44. Rxb6 {[%clk 0:00:37.2]}
44... Rxe5 {[%clk 0:00:09]} 45. Rxh6 {[%clk 0:00:38.2]} 45... Re1+ {[%clk
0:00:09.7]} 46. Kh2 {[%clk 0:00:39.1]} 46... c4 {[%clk 0:00:11.2]} 47. Rc6
{[%clk 0:00:39.3]} 47... Rc1 {[%clk 0:00:12.4]} 48. h4 {[%clk 0:00:39.4]} 48...
c3 {[%clk 0:00:13.3]} 49. g5 {[%clk 0:00:40.3]} 49... c2 {[%clk 0:00:14.5]} 50.
h5 {[%clk 0:00:41.4]} 50... Ke7 {[%clk 0:00:15]} 51. h6 {[%clk 0:00:41.4]} 51...
Kf7 {[%clk 0:00:16.1]} 52. g6+ {[%clk 0:00:42.2]} 52... Kg8 {[%clk 0:00:16.7]}
53. Rc8# {[%clk 0:00:42.9]} 1-0

[Event "*** Titled Tuesday Blitz"]
[Site "Chess.com"]
[Date "2019.04.02"]
[Round "4"]
[White "Hunninn"]
[Black "GMKrikor"]
[Result "1-0"]
[WhiteElo "2629"]
[BlackElo "2734"]
[TimeControl "180+2"]
[EndTime "14:50:26 PDT"]
[Termination "Hunninn won on time"]

1. d4 {[%clk 0:03:01.6]} 1... Nf6 {[%clk 0:03:00.9]} 2. Nf3 {[%clk 0:03:01.5]}
2... e6 {[%clk 0:03:01]} 3. Bg5 {[%clk 0:03:03]} 3... h6 {[%clk 0:03:00]} 4. Bh4
{[%clk 0:03:03.6]} 4... d6 {[%clk 0:03:01.4]} 5. e3 {[%clk 0:03:04.1]} 5... g5
{[%clk 0:03:02.8]} 6. Bg3 {[%clk 0:03:04.8]} 6... Nh5 {[%clk 0:03:04.3]} 7. Nbd2
{[%clk 0:03:05.9]} 7... Bg7 {[%clk 0:03:04.8]} 8. c3 {[%clk 0:03:06.9]} 8... a6
{[%clk 0:03:03.2]} 9. Bd3 {[%clk 0:03:05.1]} 9... Nd7 {[%clk 0:02:59.7]} 10. Nf1
{[%clk 0:03:05]} 10... Qe7 {[%clk 0:02:53.6]} 11. h4 {[%clk 0:03:06]} 11... g4
{[%clk 0:02:50.9]} 12. N3d2 {[%clk 0:03:06.5]} 12... Nxg3 {[%clk 0:02:47.1]} 13.
Nxg3 {[%clk 0:03:07.6]} 13... Nf6 {[%clk 0:02:14]} 14. Qe2 {[%clk 0:02:52]}
14... h5 {[%clk 0:02:14.3]} 15. e4 {[%clk 0:02:52.5]} 15... Bh6 {[%clk
0:02:00.2]} 16. Ndf1 {[%clk 0:02:48.5]} 16... Bf4 {[%clk 0:01:57.4]} 17. Ne3
{[%clk 0:02:36.7]} 17... Bd7 {[%clk 0:01:45.6]} 18. O-O-O {[%clk 0:02:35.8]}
18... Bc6 {[%clk 0:01:38.5]} 19. Qc2 {[%clk 0:02:16.8]} 19... d5 {[%clk
0:01:20.1]} 20. e5 {[%clk 0:02:13.4]} 20... Nd7 {[%clk 0:01:21.5]} 21. Kb1
{[%clk 0:02:06.1]} 21... O-O-O {[%clk 0:01:19.4]} 22. Qe2 {[%clk 0:02:02.2]}
22... Kb8 {[%clk 0:01:14.8]} 23. Nc2 {[%clk 0:02:02]} 23... Bxg3 {[%clk
0:00:50.9]} 24. fxg3 {[%clk 0:01:58.6]} 24... Nb6 {[%clk 0:00:39.6]} 25. Rhf1
{[%clk 0:01:55.5]} 25... Ba4 {[%clk 0:00:38.8]} 26. b3 {[%clk 0:01:51.7]} 26...
Be8 {[%clk 0:00:39.6]} 27. Qf2 {[%clk 0:01:42.3]} 27... Rc8 {[%clk 0:00:38.4]}
28. Qf6 {[%clk 0:01:42.3]} 28... Qxf6 {[%clk 0:00:38.7]} 29. Rxf6 {[%clk
0:01:43.2]} 29... c5 {[%clk 0:00:36.2]} 30. Kb2 {[%clk 0:01:43.2]} 30... a5
{[%clk 0:00:29.2]} 31. Rdf1 {[%clk 0:01:42.2]} 31... Rc7 {[%clk 0:00:17.9]} 32.
Na3 {[%clk 0:01:40.1]} 32... c4 {[%clk 0:00:17.3]} 33. Bc2 {[%clk 0:01:35.3]}
33... Kc8 {[%clk 0:00:15.3]} 34. Nb1 {[%clk 0:01:25.5]} 34... Kd8 {[%clk
0:00:15.9]} 35. Nd2 {[%clk 0:01:25.3]} 35... cxb3 {[%clk 0:00:15.2]} 36. axb3
{[%clk 0:01:26.1]} 36... Ke7 {[%clk 0:00:16.7]} 37. Ra1 {[%clk 0:01:26.7]} 37...
a4 {[%clk 0:00:18.1]} 38. bxa4 {[%clk 0:01:27.4]} 38... Bc6 {[%clk 0:00:19.4]}
39. a5 {[%clk 0:01:27.3]} 39... Nc4+ {[%clk 0:00:16.2]} 40. Nxc4 {[%clk
0:01:28.4]} 40... dxc4 {[%clk 0:00:18.1]} 41. Rf2 {[%clk 0:01:25.2]} 41... Ra8
{[%clk 0:00:14.3]} 42. Bh7 {[%clk 0:01:16.3]} 42... Ra6 {[%clk 0:00:09.2]} 43.
Kc1 {[%clk 0:01:12.1]} 43... Rc8 {[%clk 0:00:06.1]} 44. Rfa2 {[%clk 0:01:11.6]}
44... Rca8 {[%clk 0:00:06]} 45. Kb2 {[%clk 0:01:11.7]} 45... Bd5 {[%clk
0:00:04.7]} 46. Bc2 {[%clk 0:01:12.4]} 46... Bxg2 {[%clk 0:00:04.1]} 47. Ba4
{[%clk 0:01:05.5]} 47... Rxa5 {[%clk 0:00:03.5]} 48. Bc2 {[%clk 0:01:06.6]}
48... Rxa2+ {[%clk 0:00:03.8]} 49. Rxa2 {[%clk 0:01:08.5]} 49... Rxa2+ {[%clk
0:00:04.5]} 50. Kxa2 {[%clk 0:01:10.4]} 50... Kd7 {[%clk 0:00:03.2]} 51. Ka3
{[%clk 0:01:12]} 51... b5 {[%clk 0:00:04.6]} 52. Kb4 {[%clk 0:01:13.2]} 52...
Kc6 {[%clk 0:00:06.3]} 53. Bh7 {[%clk 0:01:13.4]} 53... Bf1 {[%clk 0:00:04.5]}
54. Bg8 {[%clk 0:01:14.3]} 54... Kd7 {[%clk 0:00:02.9]} 55. Bxf7 {[%clk
0:01:15.7]} 1-0

[Event "*** Titled Tuesday Blitz"]
[Site "Chess.com"]
[Date "2019.04.02"]
[Round "4"]
[White "SaraciNderim"]
[Black "TheBigBoss04"]
[Result "0-1"]
[WhiteElo "2726"]
[BlackElo "2569"]
[TimeControl "180+2"]
[EndTime "14:50:30 PDT"]
[Termination "TheBigBoss04 won by resignation"]

1. e4 {[%clk 0:03:00.4]} 1... g6 {[%clk 0:02:59.2]} 2. h4 {[%clk 0:02:59.9]}
2... Bg7 {[%clk 0:03:01.1]} 3. h5 {[%clk 0:03:00.4]} 3... d5 {[%clk 0:02:41]} 4.
h6 {[%clk 0:02:57.6]} 4... Bxh6 {[%clk 0:02:37.8]} 5. Qe2 {[%clk 0:02:53]} 5...
Nc6 {[%clk 0:02:25.5]} 6. exd5 {[%clk 0:02:28.3]} 6... Qxd5 {[%clk 0:02:23.8]}
7. Nc3 {[%clk 0:02:29.1]} 7... Qa5 {[%clk 0:02:22.1]} 8. Nf3 {[%clk 0:01:41.4]}
8... Bg4 {[%clk 0:02:04.7]} 9. Qc4 {[%clk 0:01:29.4]} 9... Bxf3 {[%clk
0:01:45.9]} 10. gxf3 {[%clk 0:01:31.3]} 10... Qe5+ {[%clk 0:01:36.2]} 11. Ne2
{[%clk 0:01:07.7]} 11... O-O-O {[%clk 0:01:28.8]} 12. c3 {[%clk 0:00:55.6]}
12... Qf6 {[%clk 0:01:13.3]} 13. f4 {[%clk 0:00:52.7]} 13... e5 {[%clk
0:01:05.6]} 14. Bg2 {[%clk 0:00:23.7]} 14... Bxf4 {[%clk 0:00:55.5]} 15. Bxc6
{[%clk 0:00:22.3]} 15... Qxc6 {[%clk 0:00:53.7]} 16. Qxc6 {[%clk 0:00:23.1]}
16... bxc6 {[%clk 0:00:55.6]} 17. d4 {[%clk 0:00:12.6]} 17... Bxc1 {[%clk
0:00:55.5]} 18. Rxc1 {[%clk 0:00:13]} 18... exd4 {[%clk 0:00:35.8]} 19. Nxd4
{[%clk 0:00:13.7]} 19... Ne7 {[%clk 0:00:36.5]} 20. O-O {[%clk 0:00:13.6]} 20...
c5 {[%clk 0:00:34.8]} 21. Nb3 {[%clk 0:00:14.3]} 21... Rd5 {[%clk 0:00:34.8]}
22. Rfe1 {[%clk 0:00:14.3]} 22... Nc6 {[%clk 0:00:28.1]} 23. Re4 {[%clk
0:00:14.9]} 23... Rhd8 {[%clk 0:00:23.8]} 24. Kg2 {[%clk 0:00:15.6]} 24... Rg5+
{[%clk 0:00:24.4]} 25. Kf1 {[%clk 0:00:15.5]} 25... h5 {[%clk 0:00:24.7]} 26.
Rc4 {[%clk 0:00:13.7]} 26... Rdd5 {[%clk 0:00:24.3]} 27. Re1 {[%clk 0:00:14.6]}
27... Ne5 {[%clk 0:00:19.4]} 28. Rxc5 {[%clk 0:00:15.4]} 28... Nf3 {[%clk
0:00:14.8]} 29. Re8+ {[%clk 0:00:16.3]} 29... Kd7 {[%clk 0:00:14.5]} 30. Rxd5+
{[%clk 0:00:17.6]} 30... Rxd5 {[%clk 0:00:16.4]} 31. Rf8 {[%clk 0:00:18.4]}
31... Ke7 {[%clk 0:00:15]} 32. Rc8 {[%clk 0:00:18.7]} 32... Kd7 {[%clk
0:00:14.8]} 33. Rf8 {[%clk 0:00:19.6]} 33... Rf5 {[%clk 0:00:16.4]} 34. Kg2
{[%clk 0:00:18.5]} 34... h4 {[%clk 0:00:16.5]} 35. Ra8 {[%clk 0:00:19.5]} 35...
Ng5 {[%clk 0:00:16.1]} 36. Nd4 {[%clk 0:00:20]} 36... h3+ {[%clk 0:00:16.4]} 37.
Kg3 {[%clk 0:00:21.1]} 37... Rf6 {[%clk 0:00:15.4]} 38. f4 {[%clk 0:00:22.3]}
38... Ne4+ {[%clk 0:00:15.6]} 39. Kxh3 {[%clk 0:00:23.7]} 39... Rxf4 {[%clk
0:00:15.5]} 40. Rxa7 {[%clk 0:00:25.1]} 40... g5 {[%clk 0:00:14.5]} 41. Nb5
{[%clk 0:00:26.1]} 41... g4+ {[%clk 0:00:14.1]} 42. Kh4 {[%clk 0:00:24.9]} 42...
g3+ {[%clk 0:00:14.9]} 43. Kh3 {[%clk 0:00:26.3]} 43... Rf2 {[%clk 0:00:05.4]}
44. Rxc7+ {[%clk 0:00:27.3]} 44... Kd8 {[%clk 0:00:06.1]} 45. Rc4 {[%clk
0:00:26.1]} 45... Rh2+ {[%clk 0:00:07]} 46. Kg4 {[%clk 0:00:27.1]} 46... g2
{[%clk 0:00:08.1]} 47. Rd4+ {[%clk 0:00:24.4]} 47... Kc8 {[%clk 0:00:09.5]} 48.
Na7+ {[%clk 0:00:23.6]} 48... Kb7 {[%clk 0:00:09.6]} 49. Rd7+ {[%clk 0:00:23.5]}
49... Kb6 {[%clk 0:00:10.7]} 0-1